fUST/lending_fUST_20241012
["ID","MTS","AMOUNT","RATE_DAILY","PERIOD"]
[340166143,1728735032469,-4229.09466068,0.00053076,120]
[340166144,1728735033320,24900.0,0.00045649,2]
[340166155,1728735038526,-9013.72766201,0.00053076,120]
[340166156,1728735038537,-163.0,0.00053291,120]
[340166157,1728735038547,-2939.36689666,0.00053304,28]
[340166158,1728735038559,-490.1576223,0.00053324,2]
[340166159,1728735038570,-604.06258836,0.0005335,2]
[340166160,1728735038580,-498.91,0.00053404,30]
[340166161,1728735038592,-415.76,0.00053404,30]
[340166162,1728735038601,-346.47,0.00053404,30]
[340166163,1728735038612,-288.72,0.00053404,30]
[340166164,1728735038623,-240.6,0.00053404,30]
[340166165,1728735038634,-2388.7,0.00053404,10]
[340166166,1728735038644,-200.5,0.00053404,30]
[340166167,1728735038661,-4555.1,0.00053404,10]
[340166168,1728735038677,-167.09,0.00053404,30]
[340166169,1728735038688,-336.6364814,0.00053404,120]
[340166170,1728735038699,-256.30281477,0.00053413,120]
[340166171,1728735038709,-279.22467144,0.00053413,120]
[340166172,1728735038719,-216.72114958,0.00053413,120]
[340166173,1728735038730,-500.0,0.00053413,120]
[340166174,1728735038740,-474.96836415,0.00053413,120]
[340166175,1728735038751,-95136.3832004,0.00053414,8]
[340166176,1728735038762,-135691.263842,0.00053414,8]
[340166177,1728735038772,-5000.0,0.00053424,120]
[340166178,1728735038783,-3018.0021934,0.00053424,120]
[340166179,1728735038792,-490.15762227,0.00053441,2]
[340166180,1728735038803,-490.15762227,0.00053557,2]
[340166181,1728735038813,-490.15762227,0.00053674,2]
[340166182,1728735038824,-1000.0,0.0005378,120]
[340166183,1728735038833,-490.15762227,0.0005379,2]
[340166184,1728735038844,-190272.766401,0.0005387,8]
[340166185,1728735038855,-271382.527683,0.0005387,8]
[340166186,1728735038867,-88888.0,0.0005388,120]
[340166187,1728735038880,-1868.35487949,0.0005389,2]
[340166188,1728735038890,-95136.3832004,0.0005396,8]
[340166189,1728735038901,-86269.66986056,0.0005396,8]
[340166190,1728735039029,-3067.42812648,0.0005396,8]
[340166197,1728735040794,-5689.91513945,0.0005396,8]
[340166198,1728735040808,-40664.25071551,0.0005396,8]
[340166199,1728735040819,-151.0,0.00053961,120]
[340166200,1728735040834,-151.0,0.00053961,120]
[340166201,1728735040845,-152.833089,0.00053961,120]
[340166202,1728735040856,-151.0,0.00053961,120]
[340166203,1728735040868,-151.0,0.00053961,30]
[340166204,1728735040879,-309.8796274,0.00053973,30]
[340166205,1728735040890,-309.8712049,0.00053973,30]
[340166206,1728735040902,-851.7465369,0.00053973,30]
[340166207,1728735040914,-210.0488919,0.00053973,30]
[340166208,1728735040927,-210.0488919,0.00053973,30]
[340166209,1728735040937,-210.0488919,0.00053973,30]
[340166210,1728735040948,-827.4985016,0.00053973,30]
[340166211,1728735040960,-210.0488919,0.00053973,30]
[340166212,1728735040971,-413.7492508,0.00053973,30]
[340166213,1728735040983,-210.0488919,0.00053973,30]
[340166214,1728735040992,-1008.35634105,0.00053979,120]
[340166215,1728735041007,-151.0,0.0005398,120]
[340166216,1728735041018,-151.0,0.0005398,120]
[340166217,1728735041033,-163.648406,0.0005398,2]
[340166218,1728735041042,-107219.57100642,0.00054,120]
[340166219,1728735041052,-501.35,0.00054,30]
[340166220,1728735041064,-1000.0,0.00054,120]
[340166221,1728735041074,-1257.93,0.00054,30]
[340166222,1728735041086,-151.0,0.00054,120]
[340166223,1728735041099,-151.0,0.00054,120]
[340166224,1728735041111,-151.0,0.00054,120]
[340166225,1728735041122,-151.0,0.00054,120]
[340166226,1728735041133,-151.0,0.00054,120]
[340166227,1728735041143,-224.687062,0.00054,120]
[340166228,1728735041154,-151.0,0.00054,120]
[340166229,1728735041165,-151.0,0.00054,30]
[340166230,1728735041177,-155.07,0.000542,54]
[340166231,1728735041190,-155.07,0.000542,54]
[340166232,1728735041202,-307.1811376,0.00054247,30]
[340166233,1728735041213,-362.0811366,0.00054247,30]
[340166234,1728735041225,-250.960348,0.00054247,30]
[340166235,1728735041237,-113276.86478,0.00054793,30]
[340166236,1728735041248,-500.0,0.00054794,120]
[340166237,1728735041258,-500.0,0.00054794,120]
[340166238,1728735041269,-500.0,0.00054794,120]
[340166239,1728735041279,-500.0,0.00054794,120]
[340166240,1728735041290,-500.0,0.00054794,120]
[340166241,1728735041300,-500.0,0.00054794,120]
[340166242,1728735041310,-500.0,0.00054794,120]
[340166243,1728735041321,-500.0,0.00054794,120]
[340166244,1728735041331,-500.0,0.00054794,120]
[340166245,1728735041342,-1250.0,0.00054794,120]
[340166246,1728735041353,-500.0,0.00054794,60]
[340166247,1728735041365,-500.0,0.00054794,120]
[340166248,1728735041376,-500.0,0.00054794,120]
[340166249,1728735041386,-500.0,0.00054794,120]
[340166250,1728735041398,-500.0,0.00054794,120]
[340166251,1728735041409,-173.51678003,0.00054794,120]
[340166252,1728735041420,-2557.0,0.00054794,120]
[340166253,1728735041430,-1000.0,0.00054794,120]
[340166254,1728735041440,-500.0,0.00054794,120]
[340166255,1728735041451,-500.0,0.00054794,120]
[340166256,1728735041461,-500.0,0.00054794,120]
[340166257,1728735041473,-339.69597298,0.00054794,10]
[340166258,1728735041484,-500.0,0.00054794,120]
[340166259,1728735041495,-500.0,0.00054794,120]
[340166260,1728735041506,-500.0,0.00054794,120]
[340166261,1728735041518,-500.0,0.00054794,120]
[340166262,1728735041529,-3333.33,0.00054794,120]
[340166263,1728735041539,-500.0,0.00054794,18]
[340166264,1728735041550,-500.0,0.00054794,120]
[340166265,1728735041562,-500.0,0.00054794,120]
[340166266,1728735041572,-1250.0,0.00054794,120]
[340166267,1728735041581,-791.06,0.00054794,120]
[340166268,1728735041592,-500.0,0.00054794,120]
[340166269,1728735041604,-500.0,0.00054794,2]
[340166270,1728735041615,-420.0977838,0.00054795,120]
[340166271,1728735041625,-210.0488919,0.00054795,120]
[340166272,1728735041636,-452.2804257,0.00054795,120]
[340166273,1728735041648,-322.2260948,0.00054795,120]
[340166274,1728735041659,-210.0488919,0.00054795,120]
[340166275,1728735041670,-153.0,0.00054795,120]
[340166276,1728735041681,-317.3629164,0.00054795,120]
[340166277,1728735041691,-153.0,0.00054795,120]
[340166278,1728735041706,-153.0,0.00054795,120]
[340166279,1728735041719,-317.1992905,0.00054795,120]
[340166280,1728735041729,-355.9222459,0.00054795,120]
[340166281,1728735041739,-500.0,0.00054795,120]
[340166282,1728735041859,-500.0,0.00054795,120]
[340166283,1728735041870,-385.81632022,0.00054795,120]
[340166284,1728735041881,-5000.0,0.00055,80]
[340166285,1728735041891,-17008.0,0.00055,60]
[340166286,1728735041902,-20000.0,0.00055,120]
[340166287,1728735041914,-500.83348103,0.00055031,7]
[340166288,1728735041924,-500.0,0.00055068,120]
[340166289,1728735041935,-500.0,0.00055068,120]
[340166290,1728735041947,-500.0,0.00055068,120]
[340166291,1728735041958,-500.0,0.00055068,120]
[340166292,1728735041968,-500.0,0.00055068,120]
[340166293,1728735041980,-500.0,0.00055068,120]
[340166294,1728735041999,-500.0,0.00055068,120]
[340166295,1728735042008,-500.0,0.00055068,120]
[340166296,1728735042017,-500.0,0.00055068,120]
[340166297,1728735042027,-500.0,0.00055068,120]
[340166298,1728735042037,-500.0,0.00055068,120]
[340166299,1728735042047,-1000.0,0.00055068,120]
[340166300,1728735042057,-500.0,0.00055068,120]
[340166301,1728735042066,-500.0,0.00055068,120]
[340166302,1728735042076,-500.0,0.00055068,120]
[340166303,1728735042085,-500.0,0.00055068,120]
[340166304,1728735042095,-500.0,0.00055068,120]
[340166305,1728735042105,-500.0,0.00055068,120]
[340166306,1728735042114,-3333.33,0.00055068,120]
[340166307,1728735042127,-500.0,0.00055068,18]
[340166308,1728735042136,-500.0,0.00055068,120]
[340166309,1728735042146,-500.0,0.00055068,120]
[340166310,1728735042155,-791.06,0.00055068,120]
[340166311,1728735042166,-500.0,0.00055068,120]
[340166312,1728735042175,-151.0,0.00055322,120]
[340166313,1728735042185,-151.0,0.00055322,120]
[340166314,1728735042195,-151.0,0.00055322,120]
[340166315,1728735042204,-500.0,0.00055342,120]
[340166316,1728735042214,-587.34255278,0.00055342,120]
[340166317,1728735042225,-261.08571821,0.00055342,120]
[340166318,1728735042235,-500.0,0.00055342,120]
[340166319,1728735042245,-500.0,0.00055342,120]
[340166320,1728735042255,-500.0,0.00055342,120]
[340166321,1728735042265,-500.0,0.00055342,60]
[340166322,1728735042274,-500.0,0.00055342,120]
[340166323,1728735042284,-500.0,0.00055342,120]
[340166324,1728735042293,-500.0,0.00055342,120]
[340166325,1728735042304,-500.0,0.00055342,120]
[340166326,1728735042315,-546.1265893,0.00055342,120]
[340166327,1728735042327,-500.0,0.00055342,120]
[340166328,1728735042338,-500.0,0.00055342,120]
[340166329,1728735042351,-3333.33,0.00055342,120]
[340166330,1728735042362,-500.0,0.00055342,18]
[340166331,1728735042373,-500.0,0.00055342,120]
[340166332,1728735042384,-791.06,0.00055342,120]
[340166333,1728735042394,-500.0,0.00055342,120]
[340166334,1728735042404,-400.0,0.00055342,2]
[340166335,1728735042414,-500.0,0.00055478,15]
[340166336,1728735042425,-517.21902393,0.00055616,120]
[340166337,1728735042435,-500.0,0.00055616,120]
[340166338,1728735042445,-500.0,0.00055616,120]
[340166339,1728735042455,-500.0,0.00055616,120]
[340166340,1728735042467,-500.0,0.00055616,120]
[340166341,1728735042478,-500.0,0.00055616,120]
[340166342,1728735042489,-500.0,0.00055616,120]
[340166343,1728735042498,-500.0,0.00055616,120]
[340166344,1728735042508,-500.0,0.00055616,120]
[340166345,1728735042518,-500.0,0.00055616,120]
[340166346,1728735042528,-3333.33,0.00055616,120]
[340166347,1728735042538,-500.0,0.00055616,18]
[340166348,1728735042549,-253.70202113,0.00055616,120]
[340166349,1728735042559,-791.06,0.00055616,120]
[340166350,1728735042572,-605.37138429,0.00055616,120]
[340166351,1728735042584,-2939.36689665,0.00055754,28]
[340166352,1728735042595,-500.0,0.0005589,120]
[340166353,1728735042607,-500.0,0.0005589,120]
[340166354,1728735042617,-500.2419537,0.0005589,120]
[340166355,1728735042627,-500.0,0.0005589,60]
[340166356,1728735042637,-500.0,0.0005589,120]
[340166357,1728735042648,-500.0,0.0005589,120]
[340166358,1728735042658,-500.0,0.0005589,120]
[340166359,1728735042669,-500.0,0.0005589,120]
[340166360,1728735042679,-500.0,0.0005589,120]
[340166361,1728735042688,-500.0,0.0005589,120]
[340166362,1728735042698,-3333.33,0.0005589,120]
[340166363,1728735042708,-500.0,0.0005589,18]
[340166364,1728735042718,-791.06,0.0005589,120]
[340166365,1728735042727,-500.0,0.00056164,120]
[340166366,1728735042738,-515.606225,0.00056164,120]
[340166368,1728735042747,-1250.0,0.00056164,120]
[340166369,1728735042757,-500.0,0.00056164,120]
[340166370,1728735042766,-500.0,0.00056164,120]
[340166371,1728735042776,-500.0,0.00056164,120]
[340166372,1728735042787,-500.0,0.00056164,120]
[340166373,1728735042797,-221.15923029,0.00056164,120]
[340166374,1728735042806,-500.0,0.00056164,120]
[340166375,1728735042816,-3333.33,0.00056164,120]
[340166377,1728735042825,-500.0,0.00056164,18]
[340166379,1728735042835,-791.06,0.00056164,120]
[340166381,1728735042845,-500.0,0.00056438,120]
[340166382,1728735042855,-500.0,0.00056438,60]
[340166383,1728735042865,-504.12419494,0.00056438,120]
[340166384,1728735042874,-574.910742,0.00056438,120]
[340166385,1728735042885,-500.0,0.00056438,120]
[340166386,1728735042895,-500.0,0.00056438,120]
[340166387,1728735042905,-500.0,0.00056438,120]
[340166389,1728735042914,-3333.33,0.00056438,120]
[340166391,1728735042924,-500.0,0.00056438,18]
[340166392,1728735042934,-791.06,0.00056438,120]
[340166393,1728735042946,-160.0,0.00056484,120]
[340166395,1728735042960,-500.0,0.00056712,120]
[340166397,1728735042969,-500.0,0.00056712,120]
[340166398,1728735042979,-500.0,0.00056712,120]
[340166399,1728735042988,-247.14,0.00056712,120]
[340166400,1728735042999,-3333.33,0.00056712,120]
[340166401,1728735043009,-500.0,0.00056712,18]
[340166402,1728735043019,-151.0,0.00056712,120]
[340166403,1728735043029,-151.0,0.00056712,120]
[340166404,1728735043039,-151.0,0.00056712,30]
[340166405,1728735043048,-791.06,0.00056712,120]
[340166406,1728735043059,-1000.0,0.00056847,15]
[340166407,1728735043068,-500.0,0.00056986,120]
[340166408,1728735043077,-500.0,0.00056986,60]
[340166409,1728735043087,-500.0,0.00056986,120]
[340166410,1728735043096,-3333.33,0.00056986,120]
[340166411,1728735043106,-489.11539481,0.00056986,18]
[340166412,1728735043116,-791.06,0.00056986,120]
[340166413,1728735043125,-280.69847979,0.0005726,120]
[340166414,1728735043135,-500.0,0.0005726,120]
[340166415,1728735043144,-3333.33,0.0005726,120]
[340166416,1728735043153,-791.06,0.0005726,120]
[340166417,1728735043164,-500.0,0.00057534,60]
[340166418,1728735043175,-500.0,0.00057534,120]
[340166419,1728735043186,-3333.33,0.00057534,120]
[340166420,1728735043196,-791.06,0.00057534,120]
[340166421,1728735043206,-166.243,0.00057579,112]
[340166422,1728735043215,-155.07,0.000577,57]
[340166423,1728735043224,-155.07,0.000577,57]
[340166424,1728735043235,-462.64694585,0.00057808,120]
[340166425,1728735043244,-3333.33,0.00057808,120]
[340166426,1728735043254,-791.06,0.00057808,120]
[340166427,1728735043263,-800.0,0.0005787,120]
[340166428,1728735043272,-5000.0,0.00058,90]
[340166429,1728735043282,-1000.0,0.00058,120]
[340166430,1728735043291,-205.716059,0.00058077,30]
[340166431,1728735043301,-163.660006,0.00058077,30]
[340166432,1728735043311,-205.716059,0.00058077,30]
[340166433,1728735043322,-500.0,0.00058082,60]
[340166434,1728735043332,-3333.33,0.00058082,120]
[340166435,1728735043343,-791.06,0.00058082,120]
[340166436,1728735043352,-1257.93,0.000581,30]
[340166437,1728735043363,-2939.36689665,0.00058204,28]
[340166438,1728735043375,-3333.33,0.00058356,120]
[340166439,1728735043386,-791.06,0.00058356,120]
[340166440,1728735043396,-3333.33,0.0005863,120]
[340166441,1728735043407,-791.06,0.0005863,120]
[340166442,1728735043418,-160.0,0.00058685,120]
[340166443,1728735043428,-193.60700828,0.00058804,2]
[340166444,1728735043438,-151.0,0.00058904,120]
[340166445,1728735043450,-151.0,0.00058904,120]
[340166446,1728735043461,-3333.33,0.00058904,120]
[340166447,1728735043472,-791.06,0.00058904,120]
[340166448,1728735043485,-500.0,0.00058935,15]
[340166449,1728735043494,-170.715,0.00059049,120]
[340166450,1728735043504,-251.557,0.00059049,120]
[340166451,1728735043513,-150.0,0.00059049,120]
[340166452,1728735043523,-526.0,0.00059049,120]
[340166453,1728735043533,-1220.0,0.00059049,120]
[340166454,1728735043544,-501.35,0.000591,30]
[340166455,1728735043554,-3333.33,0.00059178,120]
[340166456,1728735043563,-791.06,0.00059178,120]
[340166457,1728735043574,-503.04775527,0.00059183,15]
[340166458,1728735043583,-316.42,0.000592,2]
[340166459,1728735043594,-16920.03557509,0.00059202,120]
[340166460,1728735043604,-500.0,0.00059357,7]
[340166461,1728735043613,-500.0,0.00059357,15]
[340166462,1728735043623,-3333.33,0.00059452,120]
[340166463,1728735043633,-791.06,0.00059452,120]
[340166464,1728735043643,-400.0,0.0005964,2]
[340166465,1728735043653,-3333.33,0.00059726,120]
[340166466,1728735043664,-791.06,0.00059726,120]
[340166467,1728735043674,-3333.33,0.00059999,120]
[340166468,1728735043684,-791.06,0.00059999,120]
[340166469,1728735043695,-20000.0,0.0006,120]
[340166470,1728735043705,-6909.28174353,0.00060107,2]
[340166471,1728735043714,-3333.33,0.00060273,120]
[340166472,1728735043724,-791.06,0.00060273,120]
[340166473,1728735043734,-1002.13979962,0.00060305,15]
[340166474,1728735043744,-50000.0,0.000604,30]
[340166475,1728735043754,-151.0,0.000604,120]
[340166476,1728735043764,-6909.28174353,0.00060444,2]
[340166477,1728735043774,-3333.33,0.00060547,120]
[340166478,1728735043783,-791.06,0.00060547,120]
[340166479,1728735043793,-6909.28174353,0.00060618,2]
[340166480,1728735043803,-2939.36689665,0.00060654,28]
[340166481,1728735043813,-3333.33,0.00060821,120]
[340166482,1728735043822,-791.06,0.00060821,120]
[340166483,1728735043832,-166.0,0.00061,120]
[340166484,1728735043841,-201.0,0.00061,120]
[340166485,1728735043851,-5008.42,0.00061,30]
[340166486,1728735043861,-3333.420001,0.00061095,120]
[340166487,1728735043871,-791.25,0.00061095,120]
[340166488,1728735043883,-1257.93,0.000611,30]
[340166489,1728735043894,-6909.28174353,0.00061127,2]
[340166490,1728735043904,-978.95386151,0.00061184,2]
[340166491,1728735043914,-155.07,0.000612,63]
[340166492,1728735043924,-155.07,0.000612,63]
[340166493,1728735043937,-150.0,0.00061309,2]
[340166494,1728735043947,-2760.60952963,0.00061313,120]
[340166495,1728735044059,-16504.44915082,0.00061313,120]
[340166496,1728735044069,-160.0,0.00061619,120]
[340166497,1728735044080,-6909.28174354,0.00061622,2]
[340166498,1728735044091,-154.38448363,0.00061736,120]
[340166499,1728735044101,-150.65592189,0.000618,120]
[340166500,1728735044111,-1218.0,0.00062049,120]
[340166501,1728735044120,-155.9,0.00062738,120]
[340166502,1728735044130,-217.988216,0.0006274,120]
[340166504,1728735044140,-20000.0,0.00062774,6]
[340166505,1728735044150,-150.112233,0.000629,16]
[340166506,1728735044161,-1000.0,0.00063,120]
[340166508,1728735044172,-172.02880041,0.00063013,120]
[340166509,1728735044184,-2939.36689665,0.00063105,28]
[340166510,1728735044197,-202.0,0.000633,88]
[340166511,1728735044209,-5000.0,0.000635,120]
[340166512,1728735044295,-2000.0,0.000637,120]
[340166513,1728735044307,-501.35,0.000638,30]
[340166514,1728735044318,-150.0,0.000638,2]
[340166515,1728735044329,-284.27551734,0.00063899,120]
[340166516,1728735044340,-1340.80250418,0.00063899,120]
[340166517,1728735044350,-41047.03932923,0.000639,120]
[340166567,1728735047025,-1000.0,0.0005378,120]
[340166568,1728735047038,-208.5523845,0.00053973,30]
[340166569,1728735047048,-413.7492509,0.00053973,30]
[340166570,1728735047058,-6645.87650619,0.000639,120]
[340166571,1728735047238,-725.2634029,0.000639,120]
[340166579,1728735094878,607.4787021,0.00037978,2]
[340166580,1728735126146,2317.55713754,0.00045,120]
[340166583,1728735487395,1499.99999901,0.00028887,2]
[340166591,1728735952151,-3000.0,0.00040682,2]
[340166592,1728735952175,-550.0,0.00040999,30]
[340166593,1728735952197,-386.18035604,0.00040999,5]
[340166594,1728736007095,-199.36760537,0.00040999,2]
[340166595,1728736051109,-195.36185135,0.00040999,2]
[340166596,1728736146152,-172.36,0.0003299,3]
[340166597,1728736146174,-517.1,0.0003299,3]
[340166598,1728736146196,-400.0,0.00032999,2]
[340166599,1728736146218,-246.32791406,0.00033,2]
[340166600,1728736146246,-210468.61554575,0.00033,2]
[340166601,1728736146269,-344.72,0.0003436,3]
[340166602,1728736146291,-679.95410069,0.00035,7]
[340166603,1728736146316,-164.0,0.00035456,2]
[340166604,1728736146340,-259.58817976,0.0003624,2]
[340166605,1728736146363,-3111.97454474,0.0003888,120]
[340166606,1728736146387,-27645.33741814,0.00039,2]
[340166607,1728736146411,-9386.1453699,0.0004,10]
[340166608,1728736146433,-165.37688902,0.00040999,2]
[340166609,1728736146457,-3270.0,0.00041,2]
[340166610,1728736146485,-259.999999,0.00041,120]
[340166611,1728736146508,-248.2,0.00041487,30]
[340166612,1728736146533,-206.83,0.00041487,30]
[340166613,1728736146556,-500.0,0.00041496,31]
[340166614,1728736146578,-500.0,0.00041496,31]
[340166615,1728736146600,-474.96836415,0.00041496,31]
[340166616,1728736146625,-500.0,0.00041496,31]
[340166617,1728736146649,-600.0,0.00041496,31]
[340166618,1728736146671,-500.0,0.00041496,31]
[340166619,1728736146694,-500.0,0.00041496,31]
[340166620,1728736146725,-500.0,0.00041496,31]
[340166621,1728736146748,-500.0,0.00041496,31]
[340166622,1728736146773,-1098.14,0.000415,30]
[340166623,1728736146799,-357.4,0.00041992,30]
[340166624,1728736146823,-297.84,0.00041992,30]
[340166625,1728736146844,-279.22467144,0.00042001,31]
[340166626,1728736146865,-256.30281477,0.00042001,31]
[340166627,1728736146887,-216.72114958,0.00042001,31]
[340166628,1728736146910,-192.0,0.00042002,2]
[340166629,1728736146934,-24900.0,0.00042002,2]
[340166630,1728736146956,-336.6364814,0.00042002,30]
[340166631,1728736146982,-315.572844,0.0004231,2]
[340166632,1728736147005,-231.295104,0.0004242,2]
[340166633,1728736147028,-231.295104,0.00042633,2]
[340166634,1728736147052,-315.572844,0.00042995,2]
[340166635,1728736147075,-315.572844,0.0004368,2]
[340166636,1728736147098,-8486.96284641,0.00045,120]
[340166637,1728736147119,-160.0,0.00047,90]
[340166638,1728736147143,-428.89,0.0004719,30]
[340166639,1728736147168,-7122.76683667,0.000472,120]
[340166640,1728736147191,-7122.76683666,0.00048813,120]
[340166641,1728736147216,-160.0,0.00048904,90]
[340166642,1728736147237,-5040.80425737,0.00049,120]
[340166643,1728736150917,5066.23,0.00041487,10]
[340166644,1728736152827,24900.0,0.00034478,2]
[340166645,1728736155130,-24323.39832561,0.0004988,30]
[340166646,1728736157283,387.53,0.000415,30]
[340166647,1728736161560,4221.86,0.00041487,10]
[340166648,1728736165983,-16674.46910225,0.0004988,30]
[340166649,1728736172270,3518.22,0.00041487,10]
[340166650,1728736179064,2001.31547707,0.0003,2]
[340166651,1728736182873,2931.85,0.00041487,10]
[340166653,1728736193973,2443.21,0.00041487,10]
[340166654,1728736196506,2571.94603457,0.00041397,28]
[340166660,1728736201499,2571.94603457,0.00045419,28]
[340166661,1728736204800,2036.0,0.00041487,10]
[340166662,1728736206509,2571.94603457,0.00049441,28]
[340166663,1728736215461,1696.67,0.00041487,10]
[340166664,1728736223199,224.42432093,0.00049441,30]
[340166665,1728736226079,1413.89,0.00041487,10]
[340166713,1728736232631,179.41197034,0.00041496,31]
[340166714,1728736232675,195.45727001,0.00041496,31]
[340166715,1728736237310,1178.24,0.00041487,10]
[340166722,1728736238584,-54542.55555608,0.00041497,2]
[340166723,1728736238595,-12727.82211403,0.00041497,120]
[340166724,1728736238605,-8135.29001811,0.00041497,120]
[340166725,1728736238615,-789125.77146188,0.00041497,20]
[340166726,1728736238627,-2450.78811138,0.0004978,2]
[340166727,1728736238637,-9821.44327697,0.0004988,30]
[340166728,1728736238737,-193.60700828,0.000499,2]
[340166729,1728736238762,-1111.0,0.0005,2]
[340166730,1728736238773,-1111.0,0.0005,120]
[340166731,1728736238785,-95893.5942343,0.00051551,8]
[340166732,1728736238797,-24887.12821897,0.00051551,8]
[340166733,1728736238967,-437.35337289,0.00051551,8]
[340166738,1728736240429,-108975.89875714,0.00051551,8]
[340166739,1728736240441,-166.242,0.0005156,93]
[340166740,1728736240452,-33415.30605518,0.00051561,51]
[340166741,1728736240462,-604.06258836,0.000528,2]
[340166742,1728736240475,-95893.5942343,0.00053174,8]
[340166743,1728736240495,-134300.380349,0.00053174,8]
[340166744,1728736240507,-151.0,0.00053174,30]
[340166745,1728736240517,-95893.5942343,0.00053194,8]
[340166746,1728736240527,-134300.380349,0.00053194,8]
[340166747,1728736240538,-1868.35487949,0.00053195,2]
[340166748,1728736240550,-3834.48182735,0.00053204,64]
[340166749,1728736240561,-47230.19228427,0.00053204,8]
[340166756,1728736243695,-22.15195615,0.00051541,30]
[340166764,1728736246730,-21.70687237,0.00051541,30]
[340166765,1728736247069,169.0,0.00047,90]
[340166766,1728736252414,501.51634767,0.00041473,2]
[340166767,1728736344471,322.87769034,0.00041496,31]
[340166775,1728737136133,-250.0,0.00033803,2]
[340166776,1728737136160,-196.75629578,0.00035764,2]
[340166777,1728737242154,-400.0,0.00035764,2]
[340166778,1728737242179,-400.0,0.00035764,2]
[340166779,1728737242204,-2001.14751644,0.00035765,2]
[340166780,1728737243111,-306.26575902,0.00035765,2]
[340166781,1728737248146,-502.90531877,0.00035765,2]
[340166782,1728737345159,-3456.31647427,0.00035765,2]
[340166783,1728737345185,-179.968389,0.00035882,2]
[340166784,1728737345221,-191.0039878,0.00036091,2]
[340166785,1728737345246,-400.0,0.00036223,2]
[340166786,1728737345270,-400.0,0.00036224,2]
[340166787,1728737345295,-267.0,0.00036225,2]
[340166788,1728737345318,-24900.0,0.00036225,2]
[340166789,1728737345342,-2823.1933867,0.00036334,2]
[340166790,1728737345365,-174.119756,0.00036347,2]
[340166791,1728737345388,-250.0,0.00036616,2]
[340166792,1728737345414,-250.0,0.00036716,2]
[340166793,1728737345439,-250.0,0.00036817,2]
[340166794,1728737345464,-250.0,0.00036917,2]
[340166795,1728737345488,-250.0,0.00037017,2]
[340166796,1728737345512,-250.0,0.00037118,2]
[340166797,1728737345535,-250.0,0.00037218,2]
[340166798,1728737345558,-250.0,0.00037319,2]
[340166799,1728737345582,-250.0,0.00037419,2]
[340166800,1728737345605,-250.0,0.0003752,2]
[340166801,1728737345631,-250.0,0.0003762,2]
[340166802,1728737345655,-250.0,0.0003772,2]
[340166803,1728737345680,-250.0,0.00037821,2]
[340166804,1728737345702,-250.0,0.00037921,2]
[340166805,1728737345725,-250.0,0.00038022,2]
[340166806,1728737345749,-250.0,0.00038122,2]
[340166807,1728737345773,-250.0,0.00038222,2]
[340166808,1728737345797,-599.30659793,0.00038309,2]
[340166809,1728737345818,-250.0,0.00038323,2]
[340166810,1728737345841,-250.0,0.00038423,2]
[340166811,1728737345866,-250.0,0.00038524,2]
[340166812,1728737345892,-560.0,0.00038791,5]
[340166813,1728737345914,-267.0,0.00039225,2]
[340166814,1728737345935,-560.0,0.00039845,30]
[340166815,1728737345958,-999.90001,0.00040135,2]
[340166816,1728737345980,-500.0,0.00040135,31]